[Event "*** Titled Tuesday 3|2 Blitz"]
[Site "Chess.com"]
[Date "2016.09.06"]
[Round "3"]
[White "GianmarcoVaR"]
[Black "Yaacovn"]
[Result "0-1"]
[WhiteElo "2401"]
[BlackElo "2654"]
[TimeControl "180+2"]
[EndTime "11:31:13 PDT"]
[Termination "Yaacovn won by resignation"]

1. Nf3 {[%clk 0:03:01.9]} 1... Nf6 {[%clk 0:02:56.3]} 2. d4 {[%clk 0:03:01.6]}
2... e6 {[%clk 0:02:56.2]} 3. e3 {[%clk 0:03:01.1]} 3... b6 {[%clk 0:02:56.6]}
4. Bd3 {[%clk 0:03:02.3]} 4... Bb7 {[%clk 0:02:57]} 5. O-O {[%clk 0:03:02.8]}
5... Be7 {[%clk 0:02:57.6]} 6. c4 {[%clk 0:03:04.3]} 6... O-O {[%clk 0:02:57.6]}
7. Nc3 {[%clk 0:03:05.1]} 7... d5 {[%clk 0:02:57.7]} 8. b3 {[%clk 0:02:57.9]}
8... c5 {[%clk 0:02:57.4]} 9. cxd5 {[%clk 0:02:57.5]} 9... Nxd5 {[%clk
0:02:57.7]} 10. Nxd5 {[%clk 0:02:55.7]} 10... Bxd5 {[%clk 0:02:57.5]} 11. e4
{[%clk 0:02:29.5]} 11... Bb7 {[%clk 0:02:55.3]} 12. dxc5 {[%clk 0:02:30.5]}
12... Bxc5 {[%clk 0:02:53.9]} 13. Bb2 {[%clk 0:02:29.9]} 13... Nc6 {[%clk
0:02:52.8]} 14. Qe2 {[%clk 0:02:23]} 14... Qe7 {[%clk 0:02:49.3]} 15. a3 {[%clk
0:02:07.5]} 15... a5 {[%clk 0:02:49.8]} 16. Rfc1 {[%clk 0:02:00.4]} 16... Rad8
{[%clk 0:02:48.8]} 17. Bb5 {[%clk 0:01:57.5]} 17... Nd4 {[%clk 0:02:43.8]} 18.
Nxd4 {[%clk 0:00:56.1]} 18... Bxd4 {[%clk 0:02:39.6]} 19. Bxd4 {[%clk
0:00:57.2]} 19... Rxd4 {[%clk 0:02:40.3]} 20. Bc6 {[%clk 0:00:58.8]} 20... Rfd8
{[%clk 0:02:35.9]} 21. h3 {[%clk 0:00:49.7]} 21... h6 {[%clk 0:02:36]} 22. Ra2
{[%clk 0:00:39.9]} 22... Qg5 {[%clk 0:02:25.6]} 23. Rac2 {[%clk 0:00:36.3]}
23... Bxc6 {[%clk 0:02:21.2]} 24. Rxc6 {[%clk 0:00:37.2]} 24... Qf4 {[%clk
0:02:19.8]} 25. Rxb6 {[%clk 0:00:22.5]} 25... Qxc1+ {[%clk 0:02:18.2]} 0-1

[Event "*** Titled Tuesday 3|2 Blitz"]
[Site "Chess.com"]
[Date "2016.09.06"]
[Round "3"]
[White "Zhani-Z"]
[Black "lionheart95"]
[Result "0-1"]
[WhiteElo "2279"]
[BlackElo "2456"]
[TimeControl "180+2"]
[EndTime "11:31:21 PDT"]
[Termination "lionheart95 won by resignation"]

1. e4 {[%clk 0:02:47.5]} 1... e5 {[%clk 0:03:00.8]} 2. Nf3 {[%clk 0:02:47.5]}
2... Nc6 {[%clk 0:03:02]} 3. Bc4 {[%clk 0:02:46.8]} 3... Nf6 {[%clk 0:03:02.6]}
4. d3 {[%clk 0:02:47.2]} 4... h6 {[%clk 0:03:03.5]} 5. c3 {[%clk 0:02:46.1]}
5... d6 {[%clk 0:03:04.3]} 6. Bb3 {[%clk 0:02:45.8]} 6... g6 {[%clk 0:03:05.6]}
7. O-O {[%clk 0:02:45.8]} 7... Bg7 {[%clk 0:03:06.3]} 8. Re1 {[%clk 0:02:45.9]}
8... O-O {[%clk 0:03:06.9]} 9. Nbd2 {[%clk 0:02:46.3]} 9... d5 {[%clk
0:03:05.5]} 10. exd5 {[%clk 0:02:33.6]} 10... Nxd5 {[%clk 0:03:06.3]} 11. Nc4
{[%clk 0:02:33.9]} 11... Re8 {[%clk 0:03:03.4]} 12. h3 {[%clk 0:02:30]} 12...
Kh7 {[%clk 0:03:03]} 13. Ba4 {[%clk 0:02:29.5]} 13... f6 {[%clk 0:02:59.6]} 14.
Bxc6 {[%clk 0:02:20]} 14... bxc6 {[%clk 0:03:00.4]} 15. Qa4 {[%clk 0:02:06.7]}
15... Bd7 {[%clk 0:02:54.1]} 16. Bd2 {[%clk 0:01:52]} 16... Nb6 {[%clk
0:02:54.7]} 17. Qa5 {[%clk 0:01:19.7]} 17... Bf5 {[%clk 0:02:48.1]} 18. Qc5
{[%clk 0:01:07.2]} 18... Bxd3 {[%clk 0:02:39.9]} 19. Na5 {[%clk 0:01:04.2]}
19... Qd5 {[%clk 0:02:38.6]} 20. Qa3 {[%clk 0:00:54.7]} 20... c5 {[%clk
0:02:37.9]} 21. Be3 {[%clk 0:00:54.4]} 21... c4 {[%clk 0:02:33.5]} 22. Nd2
{[%clk 0:00:51.6]} 22... Bf8 {[%clk 0:02:33.7]} 23. b4 {[%clk 0:00:52.9]} 23...
cxb3 {[%clk 0:02:29.8]} 24. Qxb3 {[%clk 0:00:45.9]} 24... Qxa5 {[%clk
0:02:31.1]} 25. Qf7+ {[%clk 0:00:46.6]} 25... Bg7 {[%clk 0:02:32.2]} 26. c4
{[%clk 0:00:40.1]} 26... Bf5 {[%clk 0:02:25.8]} 27. Nb3 {[%clk 0:00:37.1]} 27...
Qa4 {[%clk 0:02:25]} 0-1

[Event "*** Titled Tuesday 3|2 Blitz"]
[Site "Chess.com"]
[Date "2016.09.06"]
[Round "3"]
[White "roldieyi"]
[Black "Quiet_Desperation"]
[Result "1-0"]
[WhiteElo "2224"]
[BlackElo "2243"]
[TimeControl "180+2"]
[EndTime "11:31:27 PDT"]
[Termination "roldieyi won by resignation"]

1. d4 {[%clk 0:03:01.9]} 1... Nf6 {[%clk 0:02:59.7]} 2. Nf3 {[%clk 0:03:02.9]}
2... e6 {[%clk 0:03:00.9]} 3. e3 {[%clk 0:03:04]} 3... b6 {[%clk 0:02:59.8]} 4.
Bd3 {[%clk 0:03:04.7]} 4... Bb7 {[%clk 0:03:01.2]} 5. b3 {[%clk 0:03:06.3]} 5...
Be7 {[%clk 0:03:01.3]} 6. Bb2 {[%clk 0:03:07.3]} 6... O-O {[%clk 0:03:01.4]} 7.
Nbd2 {[%clk 0:03:08.9]} 7... c5 {[%clk 0:03:02.4]} 8. O-O {[%clk 0:03:10.3]}
8... Nc6 {[%clk 0:03:04.3]} 9. a3 {[%clk 0:03:10.6]} 9... Rc8 {[%clk 0:03:03.5]}
10. Qe2 {[%clk 0:03:11.4]} 10... cxd4 {[%clk 0:02:59.8]} 11. exd4 {[%clk
0:03:11.7]} 11... d6 {[%clk 0:02:59]} 12. c4 {[%clk 0:03:09.5]} 12... a6 {[%clk
0:02:54.3]} 13. Rad1 {[%clk 0:03:10.1]} 13... Re8 {[%clk 0:02:53.5]} 14. Rfe1
{[%clk 0:03:09.4]} 14... Bf8 {[%clk 0:02:51.4]} 15. Qe3 {[%clk 0:03:08.4]} 15...
g6 {[%clk 0:02:49.7]} 16. b4 {[%clk 0:03:00.6]} 16... Bg7 {[%clk 0:02:46.7]} 17.
Ne4 {[%clk 0:02:57.9]} 17... Nxe4 {[%clk 0:02:47.5]} 18. Bxe4 {[%clk 0:02:59.2]}
18... f5 {[%clk 0:02:47]} 19. Bb1 {[%clk 0:02:57.2]} 19... Nb8 {[%clk
0:02:35.7]} 20. c5 {[%clk 0:02:55.5]} 20... bxc5 {[%clk 0:02:30.3]} 21. bxc5
{[%clk 0:02:52.5]} 21... Bd5 {[%clk 0:01:56.4]} 22. Qe2 {[%clk 0:02:40.6]} 22...
dxc5 {[%clk 0:01:52.7]} 23. dxc5 {[%clk 0:02:41.5]} 23... Bxb2 {[%clk
0:01:47.8]} 24. Qxb2 {[%clk 0:02:41.2]} 24... Rxc5 {[%clk 0:01:43.3]} 25. Nd4
{[%clk 0:02:28.5]} 25... Qc7 {[%clk 0:01:29.6]} 26. Ba2 {[%clk 0:02:15.2]} 26...
Nc6 {[%clk 0:01:10.2]} 27. Bxd5 {[%clk 0:02:12.7]} 27... Nxd4 {[%clk 0:01:11.5]}
28. Rxd4 {[%clk 0:02:10.2]} 28... exd5 {[%clk 0:00:48.8]} 29. Rxe8+ {[%clk
0:02:09.2]} 29... Kf7 {[%clk 0:00:48.6]} 30. Re1 {[%clk 0:02:06.8]} 1-0

[Event "*** Titled Tuesday 3|2 Blitz"]
[Site "Chess.com"]
[Date "2016.09.06"]
[Round "3"]
[White "chorejason"]
[Black "NoWuss2"]
[Result "1-0"]
[WhiteElo "2036"]
[BlackElo "1993"]
[TimeControl "180+2"]
[EndTime "11:32:35 PDT"]
[Termination "chorejason won by resignation"]

1. e4 {[%clk 0:02:36.7]} 1... Nc6 {[%clk 0:03:00.8]} 2. d4 {[%clk 0:02:37.7]}
2... e5 {[%clk 0:03:01.2]} 3. Nc3 {[%clk 0:02:38.1]} 3... exd4 {[%clk
0:03:01.5]} 4. Nd5 {[%clk 0:02:39.2]} 4... Bc5 {[%clk 0:02:52.8]} 5. Nf3 {[%clk
0:02:39.8]} 5... Nge7 {[%clk 0:02:49.8]} 6. Bc4 {[%clk 0:02:39.9]} 6... h6
{[%clk 0:02:37.3]} 7. O-O {[%clk 0:02:40.2]} 7... O-O {[%clk 0:02:36.7]} 8. Nf6+
{[%clk 0:02:31.4]} 8... gxf6 {[%clk 0:02:33.4]} 9. Bxh6 {[%clk 0:02:32.4]} 9...
Ng6 {[%clk 0:02:23.9]} 10. Nh4 {[%clk 0:02:24.2]} 10... Nce5 {[%clk 0:02:12]}
11. Nxg6 {[%clk 0:01:38.8]} 11... Nxg6 {[%clk 0:01:24.3]} 12. Qh5 {[%clk
0:01:14.1]} 12... d5 {[%clk 0:01:25.6]} 13. Bxd5 {[%clk 0:01:11.2]} 13... Ne5
{[%clk 0:01:16.3]} 14. f4 {[%clk 0:00:49.8]} 14... d3+ {[%clk 0:00:25.3]} 15.
Kh1 {[%clk 0:00:50]} 15... c6 {[%clk 0:00:04.5]} 16. Bb3 {[%clk 0:00:47.1]}
16... Bg4 {[%clk 0:00:02.4]} 17. Qh4 {[%clk 0:00:47.2]} 17... Kh7 {[%clk
0:00:02.4]} 18. fxe5 {[%clk 0:00:43.9]} 18... Be6 {[%clk 0:00:02.4]} 19. Bxf8+
{[%clk 0:00:43.3]} 19... Kg8 {[%clk 0:00:02.9]} 20. Bxc5 {[%clk 0:00:42.1]} 1-0

[Event "*** Titled Tuesday 3|2 Blitz"]
[Site "Chess.com"]
[Date "2016.09.06"]
[Round "3"]
[White "pedromartinez91"]
[Black "dretch"]
[Result "0-1"]
[WhiteElo "2392"]
[BlackElo "2622"]
[TimeControl "180+2"]
[EndTime "11:33:02 PDT"]
[Termination "dretch won by resignation"]

1. Nf3 {[%clk 0:03:01.9]} 1... d5 {[%clk 0:03:01.1]} 2. d4 {[%clk 0:03:01.4]}
2... Nf6 {[%clk 0:03:02.5]} 3. Bf4 {[%clk 0:03:02.1]} 3... c5 {[%clk 0:03:03.8]}
4. c3 {[%clk 0:03:02.9]} 4... Nc6 {[%clk 0:03:05.5]} 5. e3 {[%clk 0:03:02.1]}
5... Qb6 {[%clk 0:03:06.6]} 6. Qb3 {[%clk 0:03:01.8]} 6... c4 {[%clk 0:03:08.3]}
7. Qc2 {[%clk 0:03:02.7]} 7... Bf5 {[%clk 0:03:08.8]} 8. Qc1 {[%clk 0:03:04.1]}
8... e6 {[%clk 0:03:10.4]} 9. Nbd2 {[%clk 0:03:04.5]} 9... Be7 {[%clk
0:03:11.8]} 10. Be2 {[%clk 0:03:05.4]} 10... O-O {[%clk 0:03:12.8]} 11. h3
{[%clk 0:03:06.9]} 11... Rfc8 {[%clk 0:03:13.8]} 12. O-O {[%clk 0:03:03.7]}
12... Qd8 {[%clk 0:03:14.6]} 13. Bd1 {[%clk 0:03:03.6]} 13... b5 {[%clk
0:03:14.7]} 14. Bc2 {[%clk 0:03:03.8]} 14... b4 {[%clk 0:03:16.3]} 15. Ne5
{[%clk 0:02:42]} 15... Qa5 {[%clk 0:03:11.9]} 16. Bxf5 {[%clk 0:02:38.1]} 16...
exf5 {[%clk 0:03:12.3]} 17. Bg5 {[%clk 0:02:38.8]} 17... h6 {[%clk 0:03:00.4]}
18. Bxf6 {[%clk 0:02:12.4]} 18... Bxf6 {[%clk 0:03:02.3]} 19. f4 {[%clk
0:02:12.3]} 19... g6 {[%clk 0:03:03.7]} 20. g4 {[%clk 0:02:10.2]} 20... Ne7
{[%clk 0:02:51.3]} 21. Kg2 {[%clk 0:02:02.3]} 21... bxc3 {[%clk 0:02:43]} 22.
bxc3 {[%clk 0:02:02.3]} 22... Qa6 {[%clk 0:02:44.1]} 23. Qc2 {[%clk 0:01:58.2]}
23... Qe6 {[%clk 0:02:44.4]} 24. Kf3 {[%clk 0:01:53.3]} 24... Rab8 {[%clk
0:02:40.7]} 25. Rab1 {[%clk 0:01:52]} 25... fxg4+ {[%clk 0:02:29]} 26. hxg4
{[%clk 0:01:52.1]} 26... h5 {[%clk 0:02:28.7]} 27. gxh5 {[%clk 0:01:25.9]} 27...
Qh3+ {[%clk 0:02:26.5]} 28. Ke2 {[%clk 0:01:27.2]} 28... Qh2+ {[%clk 0:02:26.5]}
29. Rf2 {[%clk 0:01:25.5]} 29... Qxh5+ {[%clk 0:02:27.4]} 30. Ndf3 {[%clk
0:01:26.3]} 30... Nf5 {[%clk 0:02:24.1]} 31. Rh2 {[%clk 0:01:20.3]} 31... Ng3+
{[%clk 0:02:21]} 32. Kf2 {[%clk 0:01:20.2]} 32... Ne4+ {[%clk 0:02:14.4]} 33.
Kg2 {[%clk 0:01:18.4]} 33... Qf5 {[%clk 0:02:15.3]} 34. Rxb8 {[%clk 0:00:42.3]}
34... Rxb8 {[%clk 0:02:15.4]} 35. Rh1 {[%clk 0:00:40.6]} 35... g5 {[%clk
0:02:05]} 36. fxg5 {[%clk 0:00:36.8]} 36... Bxe5 {[%clk 0:02:01]} 37. Nxe5
{[%clk 0:00:24.6]} 37... Qxg5+ {[%clk 0:02:02.1]} 38. Kf1 {[%clk 0:00:25.4]}
38... Ng3+ {[%clk 0:01:48.7]} 39. Kg2 {[%clk 0:00:22.2]} 39... Nf5+ {[%clk
0:01:46.3]} 40. Kf2 {[%clk 0:00:18.9]} 40... Qxe3+ {[%clk 0:01:46]} 41. Kg2
{[%clk 0:00:18.3]} 41... Qg3+ {[%clk 0:01:46.3]} 42. Kf1 {[%clk 0:00:19.1]}
42... Ne3+ {[%clk 0:01:47.7]} 43. Ke2 {[%clk 0:00:19.6]} 43... Nxc2 {[%clk
0:01:49.1]} 0-1

[Event "*** Titled Tuesday 3|2 Blitz"]
[Site "Chess.com"]
[Date "2016.09.06"]
[Round "3"]
[White "Gordima"]
[Black "ftorodent"]
[Result "0-1"]
[WhiteElo "2514"]
[BlackElo "2483"]
[TimeControl "180+2"]
[EndTime "11:33:03 PDT"]
[Termination "ftorodent won by resignation"]

1. d4 {[%clk 0:03:02]} 1... d5 {[%clk 0:02:58.7]} 2. c4 {[%clk 0:03:02.8]} 2...
e6 {[%clk 0:02:59.6]} 3. Nc3 {[%clk 0:03:03.3]} 3... Be7 {[%clk 0:03:00.7]} 4.
Nf3 {[%clk 0:03:03]} 4... Nf6 {[%clk 0:03:01.3]} 5. Bg5 {[%clk 0:02:59.4]} 5...
O-O {[%clk 0:03:02]} 6. e3 {[%clk 0:03:00.2]} 6... h6 {[%clk 0:03:03.2]} 7. Bxf6
{[%clk 0:02:55.2]} 7... Bxf6 {[%clk 0:03:03.8]} 8. Qc2 {[%clk 0:02:56.4]} 8...
c6 {[%clk 0:02:57.1]} 9. h4 {[%clk 0:02:57]} 9... g6 {[%clk 0:02:50]} 10. Rd1
{[%clk 0:02:35.9]} 10... Nd7 {[%clk 0:02:49.3]} 11. h5 {[%clk 0:02:18.7]} 11...
g5 {[%clk 0:02:49.5]} 12. e4 {[%clk 0:02:13.9]} 12... dxe4 {[%clk 0:02:42.2]}
13. Qxe4 {[%clk 0:02:11]} 13... Bg7 {[%clk 0:02:40.5]} 14. Bd3 {[%clk
0:02:09.9]} 14... Nf6 {[%clk 0:02:41.4]} 15. Qe2 {[%clk 0:02:09.1]} 15... Qa5
{[%clk 0:02:31.1]} 16. Bb1 {[%clk 0:02:06.7]} 16... c5 {[%clk 0:02:14.5]} 17.
O-O {[%clk 0:01:48.7]} 17... cxd4 {[%clk 0:02:10.9]} 18. Nxd4 {[%clk 0:01:48.7]}
18... Bd7 {[%clk 0:02:06.4]} 19. Ne4 {[%clk 0:01:47.9]} 19... Nxe4 {[%clk
0:01:47.2]} 20. Qxe4 {[%clk 0:01:48.5]} 20... Rfd8 {[%clk 0:01:48.8]} 21. b3
{[%clk 0:01:12]} 21... Qb6 {[%clk 0:01:43.3]} 22. Rfe1 {[%clk 0:00:25.9]} 22...
Be8 {[%clk 0:01:43.2]} 23. Qh7+ {[%clk 0:00:20.3]} 23... Kf8 {[%clk 0:01:44]}
24. Nf3 {[%clk 0:00:17.8]} 24... Rxd1 {[%clk 0:01:39.6]} 25. Rxd1 {[%clk
0:00:19.7]} 25... Rd8 {[%clk 0:01:40.9]} 26. Re1 {[%clk 0:00:16]} 26... Qc5
{[%clk 0:01:41.8]} 27. Be4 {[%clk 0:00:11.1]} 27... b6 {[%clk 0:01:39]} 28. Bb1
{[%clk 0:00:07.9]} 28... g4 {[%clk 0:01:34.3]} 29. Nh2 {[%clk 0:00:05]} 29... g3
{[%clk 0:01:31.2]} 30. Ng4 {[%clk 0:00:04.1]} 30... Rd2 {[%clk 0:01:31.7]} 31.
Rf1 {[%clk 0:00:04.4]} 31... Qxh5 {[%clk 0:01:29.2]} 32. fxg3 {[%clk 0:00:02.5]}
32... Qxg4 {[%clk 0:01:19.8]} 0-1

[Event "*** Titled Tuesday 3|2 Blitz"]
[Site "Chess.com"]
[Date "2016.09.06"]
[Round "3"]
[White "RamonManon0g"]
[Black "FearlessKing64"]
[Result "0-1"]
[WhiteElo "2193"]
[BlackElo "2333"]
[TimeControl "180+2"]
[EndTime "11:33:12 PDT"]
[Termination "FearlessKing64 won by resignation"]

1. d4 {[%clk 0:03:00.1]} 1... Nf6 {[%clk 0:02:59.1]} 2. c4 {[%clk 0:03:01.3]}
2... g6 {[%clk 0:03:00]} 3. Nc3 {[%clk 0:03:02.9]} 3... d5 {[%clk 0:03:01.1]} 4.
cxd5 {[%clk 0:03:03.5]} 4... Nxd5 {[%clk 0:03:02.1]} 5. e4 {[%clk 0:03:05.4]}
5... Nxc3 {[%clk 0:03:03.4]} 6. bxc3 {[%clk 0:03:07]} 6... Bg7 {[%clk 0:03:05]}
7. Bc4 {[%clk 0:03:08.7]} 7... c5 {[%clk 0:03:06.1]} 8. Ne2 {[%clk 0:03:10.3]}
8... Nc6 {[%clk 0:03:04.7]} 9. Be3 {[%clk 0:03:11.7]} 9... O-O {[%clk
0:03:05.6]} 10. O-O {[%clk 0:03:12.9]} 10... Bg4 {[%clk 0:03:06.9]} 11. f3
{[%clk 0:03:12.3]} 11... cxd4 {[%clk 0:03:04.3]} 12. cxd4 {[%clk 0:03:10.2]}
12... Na5 {[%clk 0:03:05.6]} 13. Bxf7+ {[%clk 0:03:09.9]} 13... Rxf7 {[%clk
0:03:07.5]} 14. fxg4 {[%clk 0:03:11]} 14... Rxf1+ {[%clk 0:03:09.2]} 15. Kxf1
{[%clk 0:03:12.5]} 15... e5 {[%clk 0:03:10.5]} 16. d5 {[%clk 0:03:03]} 16... Nc4
{[%clk 0:03:09.8]} 17. Qb3 {[%clk 0:02:56]} 17... Qf6+ {[%clk 0:03:02.6]} 18.
Kg1 {[%clk 0:02:55.9]} 18... Nxe3 {[%clk 0:02:56.8]} 19. Qxe3 {[%clk 0:02:56.2]}
19... Bf8 {[%clk 0:02:43.8]} 20. Rf1 {[%clk 0:02:50.5]} 20... Qb6 {[%clk
0:02:44.1]} 21. Qxb6 {[%clk 0:02:38.4]} 21... axb6 {[%clk 0:02:46]} 22. Ra1
{[%clk 0:02:37.2]} 22... Bc5+ {[%clk 0:02:37.9]} 23. Kf1 {[%clk 0:02:38.1]}
23... Ra4 {[%clk 0:02:33.1]} 24. Nc3 {[%clk 0:02:31.3]} 24... Rc4 {[%clk
0:02:30.5]} 25. Rc1 {[%clk 0:02:32.4]} 25... Bb4 {[%clk 0:02:19.9]} 26. Ne2
{[%clk 0:02:27.3]} 26... Rxe4 {[%clk 0:02:18.3]} 27. Rc8+ {[%clk 0:02:27.6]}
27... Kg7 {[%clk 0:02:15.7]} 28. Rc7+ {[%clk 0:02:29.5]} 28... Kf6 {[%clk
0:02:14.4]} 29. g5+ {[%clk 0:02:25.7]} 29... Kxg5 {[%clk 0:02:10.3]} 30. Rxh7
{[%clk 0:02:26.8]} 30... Bc5 {[%clk 0:02:00.2]} 31. Rxb7 {[%clk 0:02:26.2]}
31... Ra4 {[%clk 0:02:00.6]} 32. g3 {[%clk 0:02:02.7]} 32... Rxa2 {[%clk
0:01:56.4]} 33. h3 {[%clk 0:01:42.8]} 33... Rd2 {[%clk 0:01:46.3]} 34. Rd7
{[%clk 0:01:36.6]} 34... Rd1+ {[%clk 0:01:38.3]} 35. Kg2 {[%clk 0:01:37.3]}
35... b5 {[%clk 0:01:23.2]} 36. Nc3 {[%clk 0:01:32.9]} 36... Rd2+ {[%clk
0:01:22.2]} 37. Kf3 {[%clk 0:01:34.1]} 37... Rd3+ {[%clk 0:01:21.6]} 38. Ke4
{[%clk 0:01:24.4]} 38... Rxc3 {[%clk 0:01:23.5]} 39. Kxe5 {[%clk 0:01:26]} 39...
b4 {[%clk 0:01:20]} 40. d6 {[%clk 0:01:18.9]} 40... Rd3 {[%clk 0:01:15.5]} 41.
Rd8 {[%clk 0:01:15.1]} 41... Rxd6 {[%clk 0:01:12.9]} 42. Rb8 {[%clk 0:01:06.3]}
42... Rb6 {[%clk 0:01:13.4]} 43. Rd8 {[%clk 0:01:06.3]} 43... b3 {[%clk
0:01:10.3]} 44. Rd1 {[%clk 0:00:56.8]} 44... b2 {[%clk 0:01:11.2]} 45. Rb1
{[%clk 0:00:58.7]} 45... Be3 {[%clk 0:01:10.6]} 46. Ke4 {[%clk 0:00:58.1]} 46...
Bc1 {[%clk 0:01:11.7]} 0-1

[Event "*** Titled Tuesday 3|2 Blitz"]
[Site "Chess.com"]
[Date "2016.09.06"]
[Round "3"]
[White "Usurpov"]
[Black "Haykos"]
[Result "0-1"]
[WhiteElo "2307"]
[BlackElo "2228"]
[TimeControl "180+2"]
[EndTime "11:33:26 PDT"]
[Termination "Haykos won by resignation"]

1. e4 {[%clk 0:03:01.9]} 1... e5 {[%clk 0:02:57.2]} 2. Nf3 {[%clk 0:03:02.5]}
2... Nc6 {[%clk 0:02:57.9]} 3. Nc3 {[%clk 0:03:03.7]} 3... g6 {[%clk 0:02:52.6]}
4. d4 {[%clk 0:03:04]} 4... exd4 {[%clk 0:02:52.7]} 5. Nxd4 {[%clk 0:03:05.9]}
5... Bg7 {[%clk 0:02:53.5]} 6. Be3 {[%clk 0:03:04.9]} 6... Nge7 {[%clk
0:02:54.1]} 7. Qd2 {[%clk 0:02:40]} 7... O-O {[%clk 0:02:52.6]} 8. Nxc6 {[%clk
0:02:35.6]} 8... bxc6 {[%clk 0:02:50.3]} 9. O-O-O {[%clk 0:02:34.4]} 9... d6
{[%clk 0:02:49.3]} 10. h4 {[%clk 0:02:31.4]} 10... Be6 {[%clk 0:02:29.8]} 11. h5
{[%clk 0:02:20.9]} 11... c5 {[%clk 0:01:56.6]} 12. Bh6 {[%clk 0:02:17.1]} 12...
Bh8 {[%clk 0:01:40.4]} 13. f4 {[%clk 0:01:45.8]} 13... Bg4 {[%clk 0:01:24.4]}
14. Bxf8 {[%clk 0:01:34.7]} 14... Qxf8 {[%clk 0:01:21.3]} 15. Be2 {[%clk
0:01:29.1]} 15... Bxe2 {[%clk 0:01:19.1]} 16. Qxe2 {[%clk 0:01:21.6]} 16... Rb8
{[%clk 0:01:17.5]} 17. e5 {[%clk 0:01:13.8]} 17... Nf5 {[%clk 0:01:16.7]} 18.
hxg6 {[%clk 0:01:09.2]} 18... hxg6 {[%clk 0:01:14.4]} 19. Qc4 {[%clk 0:00:50.3]}
19... Ne3 {[%clk 0:01:10.5]} 20. Qe4 {[%clk 0:00:50.7]} 20... Nxd1 {[%clk
0:01:10.5]} 21. Rxd1 {[%clk 0:00:51.5]} 21... Rb4 {[%clk 0:01:09]} 22. Qf3
{[%clk 0:00:45.4]} 22... dxe5 {[%clk 0:01:05.9]} 23. Nd5 {[%clk 0:00:41.7]}
23... Rxb2 {[%clk 0:00:56.3]} 24. fxe5 {[%clk 0:00:22.7]} 24... Rxa2 {[%clk
0:00:46.2]} 25. Nf6+ {[%clk 0:00:07.8]} 25... Bxf6 {[%clk 0:00:46]} 26. Qxf6
{[%clk 0:00:08.9]} 26... Ra1+ {[%clk 0:00:45.5]} 27. Kd2 {[%clk 0:00:10.3]}
27... Qh6+ {[%clk 0:00:45.7]} 28. Ke2 {[%clk 0:00:07.9]} 28... Qh5+ {[%clk
0:00:46.8]} 29. Qf3 {[%clk 0:00:08.7]} 29... Qxf3+ {[%clk 0:00:43.9]} 30. gxf3
{[%clk 0:00:09.4]} 30... Rxd1 {[%clk 0:00:45.8]} 0-1

[Event "*** Titled Tuesday 3|2 Blitz"]
[Site "Chess.com"]
[Date "2016.09.06"]
[Round "3"]
[White "VMikhalevski"]
[Black "Blitzstream"]
[Result "1-0"]
[WhiteElo "2443"]
[BlackElo "2539"]
[TimeControl "180+2"]
[EndTime "11:33:40 PDT"]
[Termination "VMikhalevski won by checkmate"]

1. Nf3 {[%clk 0:03:01.9]} 1... d5 {[%clk 0:02:58.8]} 2. g3 {[%clk 0:03:01.5]}
2... Nf6 {[%clk 0:02:59.5]} 3. Bg2 {[%clk 0:03:03]} 3... c5 {[%clk 0:02:56.6]}
4. O-O {[%clk 0:03:04.7]} 4... Nc6 {[%clk 0:02:58]} 5. d4 {[%clk 0:03:06.3]}
5... e6 {[%clk 0:02:57.5]} 6. b3 {[%clk 0:03:03.2]} 6... Be7 {[%clk 0:02:58.4]}
7. Bb2 {[%clk 0:03:03.6]} 7... O-O {[%clk 0:02:59.5]} 8. e3 {[%clk 0:03:04.3]}
8... b6 {[%clk 0:03:00.4]} 9. c4 {[%clk 0:03:04.5]} 9... Bb7 {[%clk 0:03:01.4]}
10. cxd5 {[%clk 0:03:05]} 10... exd5 {[%clk 0:02:44.7]} 11. Nc3 {[%clk
0:03:04.6]} 11... Rc8 {[%clk 0:02:41.4]} 12. Rc1 {[%clk 0:02:58.5]} 12... Ba6
{[%clk 0:02:33.7]} 13. Re1 {[%clk 0:02:58.1]} 13... Nb4 {[%clk 0:02:34.7]} 14.
Ne5 {[%clk 0:02:34.7]} 14... Nd7 {[%clk 0:02:07.4]} 15. Nxd5 {[%clk 0:02:31.5]}
15... Nxe5 {[%clk 0:01:12.6]} 16. Nxb4 {[%clk 0:02:30.9]} 16... cxb4 {[%clk
0:01:14.5]} 17. dxe5 {[%clk 0:02:29.3]} 17... Rc5 {[%clk 0:00:58.1]} 18. Bd4
{[%clk 0:02:21.9]} 18... Ra5 {[%clk 0:00:57]} 19. Rc2 {[%clk 0:02:16.9]} 19...
Bc5 {[%clk 0:00:56.6]} 20. Bxc5 {[%clk 0:02:10.8]} 20... bxc5 {[%clk 0:00:52.8]}
21. Bd5 {[%clk 0:02:08.6]} 21... Qe7 {[%clk 0:00:43.9]} 22. f4 {[%clk
0:02:07.4]} 22... Rd8 {[%clk 0:00:39.1]} 23. Qf3 {[%clk 0:02:02]} 23... Bc8
{[%clk 0:00:26.7]} 24. e4 {[%clk 0:01:56.9]} 24... Ra3 {[%clk 0:00:19]} 25. Rec1
{[%clk 0:01:54.3]} 25... Ra5 {[%clk 0:00:19.8]} 26. Qe3 {[%clk 0:01:54.2]} 26...
Be6 {[%clk 0:00:19.7]} 27. Rxc5 {[%clk 0:01:52.5]} 27... Rxa2 {[%clk 0:00:20.6]}
28. Rc7 {[%clk 0:01:45.5]} 28... Qf8 {[%clk 0:00:21.4]} 29. Bxe6 {[%clk
0:01:37.4]} 29... fxe6 {[%clk 0:00:22]} 30. R7c2 {[%clk 0:01:30.5]} 30... Ra3
{[%clk 0:00:19.4]} 31. Kg2 {[%clk 0:01:23.7]} 31... a5 {[%clk 0:00:20.4]} 32.
Qb6 {[%clk 0:01:18]} 32... Qe8 {[%clk 0:00:07.6]} 33. Rb2 {[%clk 0:01:12.1]}
33... h6 {[%clk 0:00:05.5]} 34. Rc6 {[%clk 0:01:10.1]} 34... Kh7 {[%clk
0:00:05.5]} 35. Rxe6 {[%clk 0:01:09.6]} 35... Qh5 {[%clk 0:00:07.1]} 36. Qxd8
{[%clk 0:01:08.6]} 36... Ra1 {[%clk 0:00:06.2]} 37. Re8 {[%clk 0:01:06]} 37...
Qg4 {[%clk 0:00:02.8]} 38. Rh8+ {[%clk 0:01:06.5]} 38... Kg6 {[%clk 0:00:04.2]}
39. Qe8# {[%clk 0:01:08.2]} 1-0